bitfinex-derivatives/quotes_BTCF0:USTF0_20250508
["timestamp","ask_amount","ask_price","bid_price","bid_amount"]
[1746735254096,1.79559272,101580.0,101570.0,0.06212432]
[1746735254294,1.92189291,101580.0,101570.0,0.06212432]
[1746735255202,1.75389291,101580.0,101570.0,0.06212432]
[1746735255398,1.75389291,101580.0,101560.0,0.09215377]
[1746735255399,0.1968789,101570.0,101560.0,0.09215377]
[1746735255604,0.1968789,101570.0,101560.0,0.04985377]
[1746735255605,1.34137928,101570.0,101560.0,0.04985377]
[1746735256401,1.34537928,101570.0,101560.0,0.05085377]
[1746735257809,0.57579887,101560.0,101550.0,0.01]
[1746735258097,1.0402983,101560.0,101550.0,0.01]
[1746735258305,1.29289868,101560.0,101550.0,0.01]
[1746735258500,0.1969177,101550.0,101540.0,0.09413408]
[1746735258701,1.03191808,101550.0,101540.0,0.09413408]
[1746735259609,0.90561789,101550.0,101540.0,0.09413408]
[1746735260601,0.2451177,101550.0,101540.0,0.09413408]
[1746735260902,0.73467789,101550.0,101540.0,0.14003408]
[1746735261103,0.73467789,101550.0,101540.0,0.30803408]
[1746735262107,0.73467789,101550.0,101540.0,0.14003408]
[1746735265308,0.78367789,101550.0,101540.0,0.14003408]
[1746735267709,0.78367789,101550.0,101540.0,0.15542704]
[1746735271114,0.6573777,101550.0,101540.0,0.15542704]
[1746735271409,0.78367789,101550.0,101540.0,0.15542704]
[1746735277117,0.78367789,101550.0,101540.0,0.10892704]
[1746735277414,0.6573777,101550.0,101540.0,0.10892704]
[1746735277620,0.78367789,101550.0,101540.0,0.10892704]
[1746735280119,0.78367789,101550.0,101540.0,0.10892704]
[1746735280718,0.78367789,101550.0,101540.0,0.06232704]
[1746735281513,0.90997808,101550.0,101540.0,0.01642704]
[1746735282910,0.98997808,101550.0,101540.0,0.01642704]
[1746735283716,0.1969759,101520.0,101510.0,0.6128938]
[1746735283923,0.59731718,101520.0,101510.0,0.0957]
[1746735284216,0.74091718,101520.0,101510.0,0.0957]
[1746735284416,1.10171718,101520.0,101510.0,0.0957]
[1746735285116,1.10271718,101520.0,101510.0,0.0554]
[1746735285313,1.18271718,101520.0,101510.0,0.007]
[1746735286210,1.19019742,101520.0,101510.0,0.007]
[1746735286414,1.11019742,101520.0,101510.0,0.007]
[1746735286610,1.11019742,101520.0,101510.0,0.0558]
[1746735286611,1.10271718,101520.0,101510.0,0.0558]
[1746735287012,1.10271718,101520.0,101510.0,0.1021]
[1746735287212,1.10517718,101520.0,101510.0,0.1021]
[1746735291435,1.10717718,101520.0,101510.0,0.1021]
[1746735293019,1.10717718,101520.0,101510.0,0.007]
[1746735296024,1.10717718,101520.0,101510.0,0.02239868]
[1746735296226,1.11458184,101520.0,101510.0,0.02239868]
[1746735300225,0.86198146,101520.0,101510.0,0.02239868]
[1746735300427,1.11458184,101520.0,101510.0,0.02239868]
[1746735301229,1.11458184,101520.0,101510.0,0.06959868]
[1746735301430,0.4937768,101520.0,101510.0,0.21939398]
[1746735301631,0.8545768,101520.0,101510.0,0.16569868]
[1746735301833,0.98087699,101520.0,101510.0,0.16569868]
[1746735302132,0.98087699,101520.0,101510.0,0.33369868]
[1746735302631,0.98087699,101520.0,101510.0,0.3183]
[1746735303225,0.98087699,101520.0,101510.0,0.1503]
[1746735303423,1.10717718,101520.0,101510.0,0.02221738]
[1746735303726,0.1970147,101500.0,101490.0,0.00295581]
[1746735303932,0.0492627,101490.0,101470.0,0.00103479]
[1746735304129,1.34395417,101480.0,101470.0,9e-08]
[1746735304321,1.71395417,101480.0,101470.0,9e-08]
[1746735304827,1.63405398,101480.0,101470.0,9e-08]
[1746735305027,1.76035417,101480.0,101470.0,9e-08]
[1746735305330,0.197073,101470.0,101460.0,0.09952572]
[1746735305534,0.197073,101470.0,101440.0,0.24724362]
[1746735305535,0.1971118,101450.0,101440.0,0.24724362]
[1746735305831,1.2887118,101450.0,101440.0,0.24724362]
[1746735306133,1.4306118,101450.0,101440.0,0.24724362]
[1746735306328,1.34358959,101450.0,101440.0,0.24724362]
[1746735306525,1.25358959,101450.0,101440.0,0.24724362]
[1746735306729,1.66358959,101450.0,101440.0,0.24724362]
[1746735306931,1.66358959,101450.0,101440.0,0.29654362]
[1746735307236,1.34658959,101450.0,101440.0,0.24724362]
[1746735307732,1.34758959,101450.0,101440.0,0.24724362]
[1746735308835,1.34758959,101450.0,101430.0,0.00103515]
[1746735308836,0.1971313,101440.0,101430.0,0.00103515]
[1746735309025,1.41838688,101440.0,101430.0,0.00103515]
[1746735309228,1.41838688,101440.0,101420.0,0.00295785]
[1746735309229,0.1971507,101430.0,101420.0,0.00295785]
[1746735309429,1.59496628,101430.0,101420.0,5e-08]
[1746735309738,0.1971896,101410.0,101400.0,0.1110355]
[1746735309940,1.47176739,101410.0,101400.0,0.1110355]
[1746735310237,1.47176739,101410.0,101390.0,0.22537739]
[1746735310238,0.197209,101400.0,101390.0,0.22537739]
[1746735310439,1.38196679,101400.0,101390.0,0.22537739]
[1746735310634,1.57494458,101400.0,101390.0,0.22537739]
[1746735311043,1.38196679,101400.0,101390.0,0.22537739]
[1746735311232,0.705109,101400.0,101390.0,0.22537739]
[1746735311539,0.85048679,101400.0,101390.0,0.52130589]
[1746735311736,0.85048679,101400.0,101390.0,0.32407739]
[1746735311936,0.85048679,101400.0,101390.0,0.52130589]
[1746735311937,0.85148679,101400.0,101390.0,0.52130589]
[1746735312239,0.85148679,101400.0,101390.0,0.88228368]
[1746735312240,0.561009,101400.0,101390.0,0.88228368]
[1746735312633,0.003,101400.0,101390.0,1.24308368]
[1746735312829,0.200209,101400.0,101390.0,1.24308368]
[1746735313131,0.200209,101400.0,101390.0,1.36688368]
[1746735313328,0.94696458,101400.0,101390.0,0.39337739]
[1746735313531,1.03936458,101400.0,101390.0,0.39337739]
[1746735313731,1.30587558,101400.0,101370.0,0.0485]
[1746735313960,0.1972674,101370.0,101360.0,0.05043586]
[1746735314132,0.94402298,101370.0,101360.0,0.00103586]
[1746735314439,0.84344519,101370.0,101360.0,0.00103586]
[1746735314830,0.2896674,101370.0,101360.0,0.19832266]
[1746735315136,0.84967169,101380.0,101370.0,0.1972674]
[1746735315332,0.94627169,101380.0,101370.0,0.2942674]
[1746735315533,0.246551,101390.0,101380.0,0.1972479]
[1746735315730,0.6554244,101400.0,101390.0,0.1972285]
[1746735316035,0.6094244,101400.0,101390.0,0.4196685]
[1746735316234,0.2486244,101400.0,101390.0,0.78064629]
[1746735316434,0.2486244,101400.0,101390.0,0.5876685]
[1746735316638,0.2476244,101400.0,101390.0,0.9484685]
[1746735316843,0.3451044,101410.0,101400.0,0.197209]
[1746735317138,0.3451044,101410.0,101400.0,0.463809]
[1746735317342,0.3955044,101410.0,101400.0,0.463809]
[1746735317538,0.4439644,101410.0,101400.0,0.463809]
[1746735317838,0.4439644,101410.0,101400.0,0.2666]
[1746735318027,0.4439644,101410.0,101400.0,0.39044]
[1746735318233,0.4499644,101410.0,101400.0,0.39044]
[1746735318433,0.4559644,101410.0,101400.0,0.39144]
[1746735318631,0.4559644,101410.0,101400.0,0.588649]
[1746735319039,0.4559644,101410.0,101400.0,0.39144]
[1746735319342,0.4099644,101410.0,101400.0,0.588649]
[1746735319643,0.4099644,101410.0,101400.0,0.84200373]
[1746735319644,0.2116651,101410.0,101400.0,0.84200373]
[1746735319832,0.01446,101410.0,101400.0,0.94061973]
[1746735320035,0.01446,101410.0,101400.0,2.3254296]
[1746735320244,0.1974701,101420.0,101410.0,0.1971896]
[1746735320537,0.1974701,101420.0,101410.0,0.4599]
[1746735320738,0.6555701,101420.0,101410.0,0.4201296]
[1746735321140,0.6555701,101420.0,101410.0,0.4642896]
[1746735321340,0.2947701,101420.0,101410.0,0.2671]
[1746735321535,0.2987701,101420.0,101410.0,0.39194]
[1746735321736,0.6595701,101420.0,101410.0,0.39194]
[1746735322040,1.29092483,101420.0,101410.0,0.1274475]
[1746735322238,1.72656883,101420.0,101410.0,0.001]
[1746735322539,0.1972285,101390.0,101380.0,0.4102]
[1746735322734,0.1972285,101390.0,101380.0,0.6548479]
[1746735323038,0.2918285,101390.0,101380.0,0.2940479]
[1746735323230,0.2918285,101390.0,101380.0,0.4620479]
[1746735323434,0.6526285,101390.0,101380.0,0.4620479]
[1746735324029,0.6044285,101390.0,101380.0,0.4620479]
[1746735324229,0.2436285,101390.0,101380.0,0.71540263]
[1746735324435,0.199669,101400.0,101390.0,0.1972285]
[1746735324634,0.199669,101400.0,101390.0,0.90478323]
[1746735324837,0.199669,101400.0,101390.0,0.54398323]
[1746735325145,0.00246,101400.0,101390.0,1.07278323]
[1746735325444,0.199669,101400.0,101390.0,1.11968323]
[1746735325748,0.202669,101400.0,101390.0,1.11968323]
[1746735326347,0.00546,101400.0,101390.0,1.62830723]
[1746735327145,0.00646,101400.0,101390.0,1.75330723]
[1746735327646,0.00346,101400.0,101390.0,1.75330723]
[1746735327950,0.200669,101400.0,101390.0,1.63330723]
[1746735328244,0.00346,101400.0,101390.0,1.75718723]
[1746735328838,0.0003,101420.0,101410.0,0.1971896]
[1746735329034,0.1974701,101420.0,101410.0,0.6531896]
[1746735329239,0.1974701,101420.0,101410.0,0.8211896]
[1746735329850,0.1974701,101420.0,101410.0,1.07454433]
[1746735330143,0.2014701,101420.0,101410.0,1.07454433]
[1746735330448,0.5672701,101420.0,101410.0,0.71374433]
[1746735330639,0.2064701,101420.0,101410.0,0.71374433]
[1746735330841,0.2560701,101420.0,101410.0,0.71374433]
[1746735331850,0.2560701,101420.0,101410.0,0.4603896]
[1746735332241,0.2560701,101420.0,101410.0,0.6003896]
[1746735332749,0.2560701,101420.0,101410.0,0.6103896]
[1746735333149,0.2560701,101420.0,101410.0,0.9711896]
[1746735333343,0.2560701,101420.0,101410.0,0.6103896]
[1746735333644,0.91562483,101420.0,101410.0,0.2632]
[1746735333843,0.91562483,101420.0,101410.0,0.168]
[1746735334148,0.7112701,101420.0,101410.0,0.3651896]
[1746735335548,0.7112701,101420.0,101410.0,0.1651896]
[1746735336340,0.7112701,101420.0,101410.0,0.3331896]
[1746735337642,0.7112701,101420.0,101410.0,0.34860315]
[1746735339250,0.3504701,101420.0,101410.0,0.44470315]
[1746735339450,0.2560701,101420.0,101410.0,1.05885788]
[1746735339639,0.0589,101420.0,101410.0,1.05885788]
[1746735339947,0.2560701,101420.0,101410.0,1.07383682]
[1746735340250,0.2560701,101420.0,101410.0,1.08383682]
[1746735340449,0.2560701,101420.0,101410.0,0.83048209]
[1746735340752,0.2560701,101420.0,101410.0,1.08383682]
[1746735342044,0.2560701,101420.0,101410.0,1.12983682]
[1746735342549,0.2560701,101420.0,101410.0,1.13026808]
[1746735342851,0.2560701,101420.0,101410.0,0.86150315]
[1746735343041,0.6660701,101420.0,101410.0,0.45470315]
[1746735343442,0.6660701,101420.0,101410.0,0.46457334]
[1746735343649,0.6660701,101420.0,101410.0,0.58665334]
[1746735343958,0.3052701,101420.0,101410.0,0.94745334]
[1746735344151,0.2560701,101420.0,101410.0,1.29941207]
[1746735344356,0.2560701,101420.0,101410.0,1.35972442]
[1746735344649,0.2560701,101420.0,101410.0,1.27103693]
[1746735344842,0.2560701,101420.0,101410.0,1.14895693]
[1746735345042,0.2560701,101420.0,101410.0,1.24570807]
[1746735345942,0.2560701,101420.0,101410.0,0.99235334]
[1746735346149,0.3049701,101420.0,101410.0,0.63155334]
[1746735346854,0.3049701,101420.0,101410.0,0.64688371]
[1746735347043,0.3049701,101420.0,101410.0,0.6468839]
[1746735347244,0.3049701,101420.0,101410.0,0.64688391]
[1746735347551,0.30003826,101420.0,101410.0,0.63155334]
[1746735347743,0.30003826,101420.0,101410.0,0.80910519]
[1746735348347,0.30003826,101420.0,101410.0,0.57123979]
[1746735348548,0.30003826,101420.0,101410.0,0.5613696]
[1746735348749,0.34693826,101420.0,101410.0,0.5613696]
[1746735350154,0.34693826,101420.0,101410.0,0.57138494]
[1746735350455,0.34693826,101420.0,101410.0,0.5117696]
[1746735351548,0.34693826,101420.0,101410.0,0.4872696]
[1746735352049,0.70773826,101420.0,101410.0,0.4872696]
[1746735352250,0.70773826,101420.0,101410.0,0.3192696]
[1746735353260,0.70773826,101420.0,101410.0,0.4872696]
[1746735353653,0.80701376,101420.0,101410.0,0.4872696]
[1746735355855,0.44621376,101420.0,101410.0,1.041035]
[1746735356056,0.44621376,101420.0,101410.0,1.135135]
[1746735356559,0.34693826,101420.0,101410.0,1.135135]
[1746735356745,0.34693826,101420.0,101410.0,1.181835]
[1746735357252,0.34693826,101420.0,101410.0,1.201835]
[1746735357658,0.29803826,101420.0,101410.0,1.201835]
[1746735360462,0.29803826,101420.0,101410.0,1.371835]
[1746735360760,0.34423826,101420.0,101410.0,1.371835]
[1746735361558,0.34423826,101420.0,101410.0,1.611835]
[1746735362859,0.34423826,101420.0,101410.0,1.251035]
[1746735364655,0.89800366,101420.0,101410.0,0.598]
[1746735364860,0.53720366,101420.0,101410.0,0.3651896]
[1746735365255,0.34423826,101420.0,101410.0,0.1971896]
[1746735365462,0.34423826,101420.0,101410.0,0.847355]
[1746735366157,0.34423826,101420.0,101410.0,1.015355]
[1746735366358,0.70503826,101420.0,101410.0,0.4615896]
[1746735366958,0.89800366,101420.0,101410.0,0.168]
[1746735367160,1.06600366,101420.0,101410.0,0.1971896]
[1746735367463,0.87303826,101420.0,101410.0,0.1971896]
[1746735367863,0.1971896,101410.0,101400.0,0.11055758]
[1746735368157,1.014055,101410.0,101400.0,0.00731921]
[1746735368358,0.197209,101400.0,101390.0,0.40152361]
[1746735368558,0.339709,101400.0,101390.0,0.30591661]
[1746735368759,0.700509,101400.0,101390.0,0.30591661]
[1746735368965,0.8934744,101400.0,101390.0,0.01298331]
[1746735369266,1.0614744,101400.0,101390.0,0.00295887]
[1746735370668,1.0624744,101400.0,101390.0,0.00295887]
[1746735371166,0.701509,101400.0,101390.0,0.00295887]
[1746735371466,0.702509,101400.0,101390.0,0.00395887]
[1746735371867,0.341709,101400.0,101390.0,0.39415277]
[1746735372063,0.341709,101400.0,101390.0,0.61115277]
[1746735372261,0.1445,101400.0,101390.0,1.01805277]
[1746735372458,0.0482,101400.0,101390.0,1.06475277]
[1746735372663,0.290109,101400.0,101390.0,0.87178737]
[1746735374770,0.245409,101400.0,101390.0,1.08016622]
[1746735375269,0.245409,101400.0,101390.0,1.09558057]
[1746735375468,0.199209,101400.0,101390.0,1.11558057]
[1746735375861,0.199209,101400.0,101390.0,1.11541525]
[1746735376060,0.246109,101400.0,101390.0,1.11574165]
[1746735376256,0.246109,101400.0,101390.0,1.11573979]
[1746735376869,0.246109,101400.0,101390.0,1.24049352]
[1746735378271,0.248569,101400.0,101390.0,1.24049352]
[1746735378772,0.248569,101400.0,101390.0,1.51049352]
[1746735379772,0.00446,101400.0,101390.0,1.51049352]
[1746735380074,0.00446,101400.0,101390.0,1.72923752]
[1746735381074,0.00446,101400.0,101390.0,3.22923559]
[1746735381373,0.00446,101400.0,101390.0,3.24464831]
[1746735381574,0.00446,101400.0,101390.0,3.24464828]
[1746735382265,0.00446,101400.0,101390.0,3.24464841]
[1746735383273,0.00446,101400.0,101390.0,3.24464804]
[1746735384275,0.00446,101400.0,101390.0,3.38464804]
[1746735384476,0.00446,101400.0,101390.0,2.00488804]
[1746735384677,0.00446,101400.0,101390.0,2.19785344]
[1746735384972,0.0449,101410.0,101400.0,0.197209]
[1746735385172,0.2420896,101410.0,101400.0,1.79915225]
[1746735385372,0.2420896,101410.0,101400.0,1.70480285]
[1746735385573,0.2420896,101410.0,101400.0,1.72021527]
[1746735386373,0.2420896,101410.0,101400.0,1.70480282]
[1746735386575,0.2420896,101410.0,101400.0,1.72002929]
[1746735386773,0.2935896,101410.0,101400.0,1.72102929]
[1746735386974,0.2935896,101410.0,101400.0,1.72072899]
[1746735387275,0.2935896,101410.0,101400.0,1.62211299]
[1746735387574,0.2935896,101410.0,101400.0,1.60718682]
[1746735387774,0.3387896,101410.0,101400.0,1.5544519]
[1746735391179,0.3387896,101410.0,101400.0,1.3614865]
[1746735391371,0.3387896,101410.0,101400.0,1.5544519]
[1746735392481,0.3387896,101410.0,101400.0,1.56934045]
[1746735392773,0.3387896,101410.0,101400.0,1.20854045]
[1746735392978,0.3387896,101410.0,101400.0,1.56934045]
[1746735393573,0.3387896,101410.0,101400.0,1.37637505]
[1746735393773,0.3387896,101410.0,101400.0,1.04425505]
[1746735393969,0.3387896,101410.0,101400.0,0.93895505]
[1746735394177,0.3387896,101410.0,101400.0,0.77095505]
[1746735394481,0.3387896,101410.0,101400.0,0.7113665]
[1746735394680,0.6995896,101410.0,101400.0,0.4713665]
[1746735394868,0.6995896,101410.0,101400.0,0.4413665]
[1746735396584,0.6995896,101410.0,101400.0,0.3208865]
[1746735396883,0.6995896,101410.0,101400.0,0.4413665]
[1746735398591,0.6995896,101410.0,101400.0,0.3413665]
[1746735401794,0.6995896,101410.0,101400.0,0.5343319]
[1746735402092,0.6995896,101410.0,101400.0,0.5820319]
[1746735403191,0.6995896,101410.0,101400.0,0.3890665]
[1746735404393,0.6995896,101410.0,101400.0,0.40410014]
[1746735405595,0.6995896,101410.0,101400.0,0.38906698]
[1746735405991,0.892555,101410.0,101400.0,0.34136698]
[1746735406190,0.892555,101410.0,101400.0,0.14415798]
[1746735406396,0.892555,101410.0,101400.0,0.34136698]
[1746735407400,0.892555,101410.0,101400.0,0.22088698]
[1746735407902,0.892555,101410.0,101400.0,0.02367798]
[1746735408100,1.060555,101410.0,101400.0,0.02367798]
[1746735408298,1.430555,101410.0,101400.0,0.02367798]
[1746735409196,1.262555,101410.0,101400.0,0.02367798]
[1746735411395,1.0695896,101410.0,101400.0,0.02367798]
[1746735411600,1.262555,101410.0,101400.0,0.02367798]
[1746735411803,0.6995896,101410.0,101400.0,0.22088698]
[1746735412203,0.9918305,101410.0,101400.0,0.22088698]
[1746735414196,0.9918305,101410.0,101400.0,0.20547408]
[1746735415306,0.9918305,101410.0,101400.0,0.2208893]
[1746735416099,0.892555,101410.0,101400.0,0.2208893]
[1746735416702,0.892555,101410.0,101400.0,0.2661893]
[1746735417194,0.892555,101410.0,101400.0,0.4341893]
[1746735418205,0.892555,101410.0,101400.0,0.2661893]
[1746735419105,0.892555,101410.0,101400.0,0.4341893]
[1746735419306,0.892555,101410.0,101400.0,0.3888893]
[1746735420195,0.892555,101410.0,101400.0,0.1916803]
[1746735422307,0.892555,101410.0,101400.0,0.0236803]
[1746735424109,0.9918305,101410.0,101400.0,0.1916803]
[1746735424610,0.9918305,101410.0,101400.0,0.3888893]
[1746735424808,0.9918305,101410.0,101400.0,0.4350893]
[1746735425108,0.9918305,101410.0,101400.0,0.0698803]
[1746735425310,0.9918305,101410.0,101400.0,0.0236803]
[1746735428309,0.7958651,101410.0,101400.0,0.0236803]
[1746735428504,0.9938305,101410.0,101400.0,0.2218893]
[1746735428705,0.9938305,101410.0,101400.0,0.1192803]
[1746735428898,0.9938305,101410.0,101400.0,0.3164893]
[1746735429110,0.9958305,101410.0,101400.0,0.4844893]
[1746735429712,0.9958305,101410.0,101400.0,0.2410803]
[1746735429911,0.9958305,101410.0,101400.0,0.1926803]
[1746735430113,0.9958305,101410.0,101400.0,0.0246803]
[1746735430304,1.3258305,101410.0,101400.0,0.0246803]
[1746735431114,1.3258305,101410.0,101400.0,0.2218893]
[1746735431414,0.9958305,101410.0,101400.0,0.2218893]
[1746735431709,0.8028651,101410.0,101400.0,0.3195893]
[1746735432213,0.8028651,101410.0,101400.0,0.4875893]
[1746735433017,0.8028651,101410.0,101400.0,0.5029902]
[1746735433210,0.8028651,101410.0,101400.0,0.50298938]
[1746735434116,0.8028651,101410.0,101400.0,0.4875893]
[1746735434309,0.4420651,101410.0,101400.0,0.4875893]
[1746735434509,0.3955651,101410.0,101400.0,0.7438696]
[1746735434813,0.3955651,101410.0,101400.0,0.5509042]
[1746735435617,0.3955651,101410.0,101400.0,0.5354893]
[1746735436514,0.3955651,101410.0,101400.0,0.55088781]
[1746735436821,0.3955651,101410.0,101400.0,0.5354893]
[1746735437920,0.3955651,101410.0,101400.0,0.55088225]
[1746735438109,0.3503651,101410.0,101400.0,0.55088225]
[1746735438312,0.3503651,101410.0,101400.0,0.5354893]
[1746735438615,0.3528251,101410.0,101400.0,0.5354893]
[1746735439114,0.1556355,101410.0,101400.0,0.7284547]
[1746735439320,0.3079251,101410.0,101400.0,1.22463951]
[1746735439524,0.43256841,101410.0,101400.0,1.22463951]
[1746735439708,0.43256841,101410.0,101400.0,1.63463951]
[1746735439909,0.47766841,101410.0,101400.0,1.44167411]
[1746735440819,0.23537881,101410.0,101400.0,2.24350491]
[1746735441016,0.23537881,101410.0,101400.0,2.34212091]
[1746735441514,0.13610331,101410.0,101400.0,2.45904091]
[1746735441712,0.13610331,101410.0,101400.0,2.45903843]
[1746735441909,0.13610331,101410.0,101400.0,2.45803843]
[1746735442115,0.13310331,101410.0,101400.0,2.46106588]
[1746735443221,0.10050589,101420.0,101410.0,0.2957767]
[1746735443421,0.12573237,101430.0,101420.0,0.1971701]
[1746735443718,0.12573237,101430.0,101420.0,1.8518605]
[1746735444023,0.12573237,101430.0,101420.0,1.95045649]
[1746735444219,0.12573237,101430.0,101420.0,2.11845649]
[1746735444614,0.12773237,101430.0,101420.0,2.11845649]
[1746735444818,0.12773237,101430.0,101420.0,2.11845069]
[1746735445118,0.0001,101430.0,101420.0,2.12045069]
[1746735445313,0.0001,101430.0,101420.0,2.12445069]
[1746735445314,0.0011,101430.0,101420.0,2.12445069]
[1746735447615,0.0011,101430.0,101420.0,1.93148529]
[1746735447823,0.0011,101430.0,101420.0,2.12445069]
[1746735448320,0.0011,101430.0,101420.0,2.12445189]
[1746735449628,0.0011,101430.0,101420.0,3.08033189]
[1746735450221,0.0011,101430.0,101420.0,3.06492423]
[1746735450417,0.0011,101430.0,101420.0,3.08033124]
[1746735451027,0.0011,101430.0,101420.0,3.09164918]
[1746735451825,0.0011,101430.0,101420.0,3.0916467]
[1746735452618,0.0011,101430.0,101420.0,3.09164317]
[1746735454323,0.0011,101430.0,101420.0,3.20888317]
[1746735454523,0.0503,101430.0,101420.0,3.32512365]
[1746735454925,0.0011,101430.0,101420.0,3.32512365]
[1746735455128,0.0011,101430.0,101420.0,3.30977178]
[1746735455320,0.0011,101430.0,101420.0,3.29435904]
[1746735455630,0.0011,101430.0,101420.0,3.29435704]
[1746735455831,0.0011,101430.0,101420.0,3.29435663]
[1746735456031,0.0011,101430.0,101420.0,3.32516984]
[1746735457623,0.049,101430.0,101420.0,3.32516984]
[1746735457818,0.049,101430.0,101420.0,3.13220444]
[1746735458117,0.049,101430.0,101420.0,3.32516984]
[1746735458730,0.049,101430.0,101420.0,3.09169153]
[1746735458930,0.049,101430.0,101420.0,3.32493153]
[1746735459231,0.1004,101430.0,101420.0,3.32493153]
[1746735459528,0.1004,101430.0,101420.0,3.32494897]
[1746735459728,0.1004,101430.0,101420.0,3.32490897]
[1746735460427,0.1004,101430.0,101420.0,3.29811892]
[1746735460631,0.1004,101430.0,101420.0,3.32496842]
[1746735461524,0.1004,101430.0,101420.0,3.19952293]
[1746735461723,0.1479,101430.0,101420.0,3.11042099]
[1746735461924,0.1479,101430.0,101420.0,3.22630099]
[1746735462934,0.1479,101430.0,101420.0,3.22629955]
[1746735464035,0.1479,101430.0,101420.0,3.22632555]
[1746735464434,0.1479,101430.0,101420.0,2.99320555]
[1746735464636,0.1479,101430.0,101420.0,3.22464555]
[1746735465338,0.1479,101430.0,101420.0,3.22469758]
[1746735465639,0.1479,101430.0,101420.0,3.10897758]
[1746735465830,0.1479,101430.0,101420.0,3.22461758]
[1746735466030,0.1479,101430.0,101420.0,3.03165218]
[1746735466330,0.3159,101430.0,101420.0,3.05661758]
[1746735466529,0.31096948,101430.0,101420.0,3.05661758]
[1746735466733,0.31096948,101430.0,101420.0,3.05689997]
[1746735467438,0.31096948,101430.0,101420.0,3.056858]
[1746735467827,0.31096948,101430.0,101420.0,3.05685806]
[1746735469544,0.31096948,101430.0,101420.0,3.05691035]
[1746735470338,0.31096948,101430.0,101420.0,3.00821035]
[1746735470730,0.50812018,101430.0,101420.0,2.58408495]
[1746735471042,0.70108558,101430.0,101420.0,2.71950495]
[1746735471337,0.50812018,101430.0,101420.0,2.60409293]
[1746735473238,0.50812018,101430.0,101420.0,2.60397169]
[1746735473838,0.50812018,101430.0,101420.0,2.18807169]
[1746735474238,0.50812018,101430.0,101420.0,2.07235169]
[1746735474438,0.50812018,101430.0,101420.0,2.18807169]
[1746735475538,0.50812018,101430.0,101420.0,2.07235169]
[1746735475738,0.50812018,101430.0,101420.0,2.18807047]
[1746735478639,0.50812018,101430.0,101420.0,2.18800094]
[1746735479844,0.63473272,101430.0,101420.0,2.18800094]
[1746735480340,0.50812018,101430.0,101420.0,2.18800094]
[1746735480540,0.50812018,101430.0,101420.0,2.18801535]
[1746735481142,0.50812018,101430.0,101420.0,2.18801366]
[1746735483040,0.50812018,101430.0,101420.0,2.23701366]
[1746735483742,0.50812018,101430.0,101420.0,2.23711023]
[1746735485447,0.20713884,101430.0,101420.0,2.59202712]
[1746735486145,0.20713884,101430.0,101420.0,2.46541458]
[1746735486641,0.20713884,101430.0,101420.0,2.59202712]
[1746735486843,0.20713884,101430.0,101420.0,2.46541458]
[1746735487043,0.20713884,101430.0,101420.0,2.46540597]
[1746735487544,0.20713884,101430.0,101420.0,2.59201851]
[1746735488643,0.20713884,101430.0,101420.0,2.46540597]
[1746735488844,0.20713884,101430.0,101420.0,2.88130597]
[1746735490247,0.20713884,101430.0,101420.0,3.00791851]
[1746735490538,0.20713884,101430.0,101420.0,3.00791842]
[1746735490743,0.20713884,101430.0,101420.0,3.00792116]
[1746735490945,0.199743,101430.0,101420.0,3.00792116]
[1746735491140,0.19512058,101430.0,101420.0,3.00791973]
[1746735491540,0.168,101430.0,101420.0,3.00791973]
[1746735492440,0.168,101430.0,101420.0,3.00794654]
[1746735492641,0.16106716,101430.0,101420.0,3.00794654]
[1746735495653,0.16106716,101430.0,101420.0,3.00794593]
[1746735498150,0.16106716,101430.0,101420.0,3.00794672]
[1746735499549,0.16106716,101430.0,101420.0,2.99639261]
[1746735499850,0.16106716,101430.0,101420.0,3.0079477]
[1746735500051,0.15613699,101430.0,101420.0,3.0079477]
[1746735501756,0.14874225,101430.0,101420.0,3.0079477]
[1746735502155,0.14874225,101430.0,101420.0,2.75472262]
[1746735502346,0.14874225,101430.0,101420.0,3.0079477]
[1746735502540,0.20104225,101430.0,101420.0,3.0079477]
[1746735503246,0.20104225,101430.0,101420.0,3.00784061]
[1746735503451,0.20104225,101430.0,101420.0,2.64704061]
[1746735503653,0.20104225,101430.0,101420.0,3.36864061]
[1746735503853,0.20104225,101430.0,101420.0,3.25292061]
[1746735504056,0.20104225,101430.0,101420.0,3.48084061]
[1746735504451,0.14874225,101430.0,101420.0,3.6313437]
[1746735504948,0.20004225,101430.0,101420.0,3.6313437]
[1746735506254,0.19542055,101430.0,101420.0,3.6313437]
[1746735507058,0.14412055,101430.0,101420.0,3.6314259]
[1746735507357,0.14658055,101430.0,101420.0,3.6314259]
[1746735507550,0.19688055,101430.0,101420.0,3.6314259]
[1746735508256,0.19688055,101430.0,101420.0,3.6314486]
[1746735508456,0.19688055,101430.0,101420.0,3.61989461]
[1746735508655,0.19688055,101430.0,101420.0,3.63144547]
[1746735510360,0.19688055,101430.0,101420.0,3.63144971]
[1746735511857,0.10711871,101430.0,101420.0,3.73110146]
[1746735512053,0.09279055,101430.0,101420.0,3.75806322]
[1746735512260,0.07657326,101430.0,101420.0,3.75806322]
[1746735512455,0.13933059,101440.0,101430.0,0.1971507]
[1746735512763,0.0516,101440.0,101430.0,1.63244831]
[1746735512961,0.0516,101440.0,101430.0,1.64785657]
[1746735513258,0.2196,101440.0,101430.0,1.39463149]
[1746735513558,0.2196,101440.0,101430.0,1.64785574]
[1746735513754,0.2196,101440.0,101430.0,3.56375574]
[1746735513964,0.168,101440.0,101430.0,3.56375574]
[1746735514258,0.168,101440.0,101430.0,3.56475574]
[1746735514461,0.15363,101440.0,101430.0,3.56475574]
[1746735514655,0.0350235,101440.0,101430.0,3.56575574]
[1746735515166,0.03009409,101440.0,101430.0,3.56575342]
[1746735515357,0.03009409,101440.0,101430.0,3.56575266]
[1746735515556,0.03009409,101440.0,101430.0,3.56475266]
[1746735515757,0.03009409,101440.0,101430.0,3.56975266]
[1746735515953,0.03009409,101440.0,101430.0,3.57375266]
[1746735516264,0.03109409,101440.0,101430.0,3.30511932]
[1746735516454,0.03109409,101440.0,101430.0,3.5583444]
[1746735516650,0.03109409,101440.0,101430.0,3.54293988]
[1746735516854,0.08389409,101440.0,101430.0,3.52944734]
[1746735517061,0.13569409,101440.0,101430.0,3.98020747]
[1746735517262,0.13569409,101440.0,101430.0,3.98020752]
[1746735517457,0.13569409,101440.0,101430.0,4.10682006]
[1746735518062,0.1056,101440.0,101430.0,4.27482006]
[1746735518461,0.1056,101440.0,101430.0,4.26326637]
[1746735518763,0.0528,101440.0,101430.0,4.26326637]
[1746735519465,0.05526,101450.0,101440.0,0.1971313]
[1746735519757,0.4596212,101490.0,101450.0,0.049275]
[1746735519964,0.7059375,101490.0,101480.0,0.1970536]
[1746735520468,0.9559375,101490.0,101480.0,0.1970536]
[1746735520761,0.9066748,101490.0,101480.0,0.1970536]
[1746735521466,0.9116748,101490.0,101480.0,0.1970536]